fUSD/lending_fUSD_20260611
["ID","MTS","AMOUNT","RATE_DAILY","PERIOD"]
[424785612,1781161841000,-660.37,0.00013698,2]
[424785616,1781161841000,-660.37,0.00013698,2]
[424785615,1781161841000,-660.37,0.00013698,2]
[424785682,1781161842000,-500.0,0.00013698,2]
[424785699,1781161842000,-500.0,0.00013698,2]
[424785681,1781161842000,-500.0,0.00013698,2]
[424785678,1781161842000,-500.0,0.00013698,2]
[424785680,1781161842000,-500.0,0.00013698,2]
[424785673,1781161842000,-500.0,0.00013698,2]
[424785677,1781161842000,-500.0,0.00013698,2]
[424785675,1781161842000,-500.0,0.00013698,2]
[424785674,1781161842000,-500.0,0.00013698,2]
[424785676,1781161842000,-500.0,0.00013698,2]
[424785679,1781161842000,-500.0,0.00013698,2]
[424785683,1781161842000,-500.0,0.00013698,2]
[424785695,1781161842000,-500.0,0.00013698,2]
[424785686,1781161842000,-500.0,0.00013698,2]
[424785684,1781161842000,-500.0,0.00013698,2]
[424785685,1781161842000,-500.0,0.00013698,2]
[424785689,1781161842000,-500.0,0.00013698,2]
[424785693,1781161842000,-500.0,0.00013698,2]
[424785688,1781161842000,-500.0,0.00013698,2]
[424785692,1781161842000,-502.88764057,0.00013698,2]
[424785691,1781161842000,-500.0,0.00013698,2]
[424785690,1781161842000,-500.0,0.00013698,2]
[424785694,1781161842000,-500.0,0.00013698,2]
[424785670,1781161842000,-500.0,0.00013698,2]
[424785687,1781161842000,-500.0,0.00013698,2]
[424785669,1781161842000,-500.0,0.00013698,2]
[424785656,1781161842000,-415.12475003,0.00013698,2]
[424785672,1781161842000,-500.0,0.00013698,2]
[424785697,1781161842000,-500.0,0.00013698,2]
[424785644,1781161842000,-500.0,0.00013698,2]
[424785647,1781161842000,-500.0,0.00013698,2]
[424785646,1781161842000,-500.0,0.00013698,2]
[424785648,1781161842000,-500.0,0.00013698,2]
[424785649,1781161842000,-500.0,0.00013698,2]
[424785645,1781161842000,-500.0,0.00013698,2]
[424785650,1781161842000,-500.0,0.00013698,2]
[424785653,1781161842000,-500.0,0.00013698,2]
[424785651,1781161842000,-292.30346816,0.00013698,2]
[424785652,1781161842000,-500.0,0.00013698,2]
[424785654,1781161842000,-500.0,0.00013698,2]
[424785655,1781161842000,-500.0,0.00013698,2]
[424785657,1781161842000,-500.0,0.00013698,2]
[424785661,1781161842000,-500.0,0.00013698,2]
[424785659,1781161842000,-500.0,0.00013698,2]
[424785658,1781161842000,-500.0,0.00013698,2]
[424785660,1781161842000,-500.0,0.00013698,2]
[424785662,1781161842000,-500.0,0.00013698,2]
[424785664,1781161842000,-500.0,0.00013698,2]
[424785663,1781161842000,-500.0,0.00013698,2]
[424785665,1781161842000,-500.0,0.00013698,2]
[424785667,1781161842000,-500.0,0.00013698,2]
[424785671,1781161842000,-500.0,0.00013698,2]
[424785668,1781161842000,-500.0,0.00013698,2]
[424785666,1781161842000,-500.0,0.00013698,2]
[424785696,1781161842000,-500.0,0.00013698,2]
[424785745,1781161842000,-500.0,0.00013698,2]
[424785700,1781161842000,-500.0,0.00013698,2]
[424785729,1781161842000,-500.0,0.00013698,2]
[424785731,1781161842000,-171.51496798,0.00013698,2]
[424785733,1781161842000,-500.0,0.00013698,2]
[424785732,1781161842000,-500.0,0.00013698,2]
[424785734,1781161842000,-500.0,0.00013698,2]
[424785737,1781161842000,-500.0,0.00013698,2]
[424785741,1781161842000,-500.0,0.00013698,2]
[424785736,1781161842000,-500.0,0.00013698,2]
[424785742,1781161842000,-500.0,0.00013698,2]
[424785739,1781161842000,-500.0,0.00013698,2]
[424785735,1781161842000,-500.0,0.00013698,2]
[424785743,1781161842000,-500.0,0.00013698,2]
[424785747,1781161842000,-500.0,0.00013698,2]
[424785749,1781161842000,-500.0,0.00013698,2]
[424785751,1781161842000,-500.0,0.00013698,2]
[424785761,1781161842000,-500.0,0.00013698,2]
[424785764,1781161842000,-500.0,0.00013698,2]
[424785763,1781161842000,-500.0,0.00013698,2]
[424785750,1781161842000,-500.0,0.00013698,2]
[424785759,1781161842000,-500.0,0.00013698,2]
[424785754,1781161842000,-500.0,0.00013698,2]
[424785752,1781161842000,-500.0,0.00013698,2]
[424785698,1781161842000,-500.0,0.00013698,2]
[424785765,1781161842000,-500.0,0.00013698,2]
[424785766,1781161842000,-500.0,0.00013698,2]
[424785730,1781161842000,-500.0,0.00013698,2]
[424785725,1781161842000,-500.0,0.00013698,2]
[424785756,1781161842000,-500.0,0.00013698,2]
[424785727,1781161842000,-500.0,0.00013698,2]
[424785728,1781161842000,-500.0,0.00013698,2]
[424785705,1781161842000,-500.0,0.00013698,2]
[424785704,1781161842000,-500.0,0.00013698,2]
[424785702,1781161842000,-500.0,0.00013698,2]
[424785706,1781161842000,-500.0,0.00013698,2]
[424785703,1781161842000,-500.0,0.00013698,2]
[424785707,1781161842000,-500.0,0.00013698,2]
[424785709,1781161842000,-500.0,0.00013698,2]
[424785710,1781161842000,-500.0,0.00013698,2]
[424785711,1781161842000,-500.0,0.00013698,2]
[424785708,1781161842000,-500.0,0.00013698,2]
[424785713,1781161842000,-500.0,0.00013698,2]
[424785712,1781161842000,-500.0,0.00013698,2]
[424785701,1781161842000,-500.0,0.00013698,2]
[424785714,1781161842000,-500.0,0.00013698,2]
[424785726,1781161842000,-500.0,0.00013698,2]
[424785723,1781161842000,-500.0,0.00013698,2]
[424785720,1781161842000,-500.0,0.00013698,2]
[424785722,1781161842000,-500.0,0.00013698,2]
[424785721,1781161842000,-500.0,0.00013698,2]
[424785724,1781161842000,-500.0,0.00013698,2]
[424785716,1781161842000,-500.0,0.00013698,2]
[424785715,1781161842000,-500.0,0.00013698,2]
[424785717,1781161842000,-500.0,0.00013698,2]
[424785719,1781161842000,-500.0,0.00013698,2]
[424785718,1781161842000,-500.0,0.00013698,2]
[424785797,1781161843000,-1134.94,0.00013698,2]
[424785796,1781161843000,-500.0,0.00013698,2]
[424785794,1781161843000,-500.0,0.00013698,2]
[424785795,1781161843000,-500.0,0.00013698,2]
[424785799,1781161843000,-1134.94,0.00013698,2]
[424785798,1781161843000,-1134.94,0.00013698,2]
[424785800,1781161843000,-1134.94,0.00013698,2]
[424785806,1781161843000,-500.0,0.00013698,2]
[424785807,1781161843000,-500.0,0.00013698,2]
[424785805,1781161843000,-500.0,0.00013698,2]
[424785804,1781161843000,-500.0,0.00013698,2]
[424785808,1781161843000,-500.0,0.00013698,2]
[424785801,1781161843000,-1134.94,0.00013698,2]
[424785803,1781161843000,-1135.07347202,0.00013698,2]
[424785809,1781161843000,-500.0,0.00013698,2]
[424785817,1781161843000,-771.36,0.00013699,2]
[424785811,1781161843000,-503.42046644,0.00013698,2]
[424785815,1781161843000,-185.12,0.00013699,2]
[424785813,1781161843000,-2500.0,0.00013699,2]
[424785816,1781161843000,-154.27,0.00013699,2]
[424785814,1781161843000,-222.15,0.00013699,2]
[424785812,1781161843000,-200.0,0.00013699,2]
[424785793,1781161843000,-1134.94,0.00013698,2]
[424785802,1781161843000,-1134.94,0.00013698,2]
[424785791,1781161843000,-1134.94,0.00013698,2]
[424785779,1781161843000,-1134.94,0.00013698,2]
[424785792,1781161843000,-500.0,0.00013698,2]
[424785819,1781161843000,-575.79339238,0.00013699,2]
[424785767,1781161843000,-500.0,0.00013698,2]
[424785769,1781161843000,-1134.94,0.00013698,2]
[424785770,1781161843000,-1134.94,0.00013698,2]
[424785768,1781161843000,-500.0,0.00013698,2]
[424785772,1781161843000,-1134.94,0.00013698,2]
[424785773,1781161843000,-1134.94,0.00013698,2]
[424785774,1781161843000,-1134.94,0.00013698,2]
[424785775,1781161843000,-1134.94,0.00013698,2]
[424785771,1781161843000,-1134.94,0.00013698,2]
[424785776,1781161843000,-1134.94,0.00013698,2]
[424785778,1781161843000,-1134.94,0.00013698,2]
[424785777,1781161843000,-500.0,0.00013698,2]
[424785782,1781161843000,-500.0,0.00013698,2]
[424785784,1781161843000,-500.0,0.00013698,2]
[424785780,1781161843000,-500.0,0.00013698,2]
[424785783,1781161843000,-1134.94,0.00013698,2]
[424785785,1781161843000,-1134.94,0.00013698,2]
[424785786,1781161843000,-500.0,0.00013698,2]
[424785781,1781161843000,-1134.94,0.00013698,2]
[424785787,1781161843000,-1134.94,0.00013698,2]
[424785789,1781161843000,-1134.94,0.00013698,2]
[424785788,1781161843000,-500.0,0.00013698,2]
[424785790,1781161843000,-500.0,0.00013698,2]
[424785818,1781161843000,-22261.86,0.00013699,2]
[424785810,1781161843000,-500.0,0.00013698,2]
[424785821,1781161843000,-491.06,0.000137,2]
[424785859,1781161843000,-150.0,0.0001377,2]
[424785858,1781161843000,-550.07456704,0.00013766,2]
[424785861,1781161843000,-150.0,0.00013773,2]
[424785865,1781161843000,-254.58489995,0.00013775,2]
[424785868,1781161843000,-150.0,0.00013787,2]
[424785866,1781161843000,-165.1,0.00013784,2]
[424785869,1781161843000,-150.0,0.00013787,2]
[424785871,1781161843000,-150.0,0.00013799,2]
[424785872,1781161843000,-254.58489995,0.00013806,2]
[424785876,1781161843000,-150.0,0.00013827,2]
[424785874,1781161843000,-150.0,0.00013809,2]
[424785855,1781161843000,-660.37,0.00013755,2]
[424785877,1781161843000,-150.0,0.0001383,2]
[424785873,1781161843000,-150.0,0.00013809,2]
[424785875,1781161843000,-254.58489995,0.00013821,2]
[424785878,1781161843000,-254.58489995,0.00013836,2]
[424785879,1781161843000,-150.0,0.00013844,2]
[424785881,1781161843000,-254.58489995,0.00013851,2]
[424785882,1781161843000,-150.0,0.00013855,2]
[424785883,1781161843000,-254.58489995,0.00013866,2]
[424785888,1781161843000,-254.58489995,0.00013881,2]
[424785880,1781161843000,-150.0,0.00013844,2]
[424785885,1781161843000,-150.0,0.0001388,2]
[424785820,1781161843000,-254.58489995,0.000137,2]
[424785870,1781161843000,-254.58489995,0.0001379,2]
[424785856,1781161843000,-150.0,0.0001376,2]
[424785886,1781161843000,-150.0,0.0001388,2]
[424785863,1781161843000,-150.0,0.00013773,2]
[424785822,1781161843000,-150.0,0.000137,2]
[424785825,1781161843000,-150.0,0.000137,2]
[424785824,1781161843000,-150.0,0.000137,2]
[424785823,1781161843000,-150.0,0.000137,2]
[424785833,1781161843000,-150.0,0.00013702,2]
[424785829,1781161843000,-150.0,0.00013702,2]
[424785827,1781161843000,-278.60891467,0.000137,2]
[424785857,1781161843000,-254.58489995,0.0001376,2]
[424785835,1781161843000,-150.0,0.00013702,2]
[424785884,1781161843000,-150.0,0.00013873,2]
[424785838,1781161843000,-150.0,0.00013714,2]
[424785840,1781161843000,-87135.38377846,0.00013714,2]
[424785831,1781161843000,-150.0,0.00013702,2]
[424785843,1781161843000,-4000.0,0.00013718,2]
[424785841,1781161843000,-254.58489995,0.00013715,2]
[424785844,1781161843000,-254.58489995,0.0001373,2]
[424785845,1781161843000,-150.0,0.00013737,2]
[424785847,1781161843000,-150.0,0.00013742,2]
[424785848,1781161843000,-150.0,0.00013745,2]
[424785846,1781161843000,-150.0,0.00013737,2]
[424785850,1781161843000,-2171.56,0.00013755,2]
[424785849,1781161843000,-254.58489995,0.00013745,2]
[424785851,1781161843000,-909.22,0.00013755,2]
[424785842,1781161843000,-549.51495302,0.00013717,2]
[424785853,1781161843000,-500.0,0.00013755,13]
[424785924,1781161844000,-254.58489995,0.00014033,2]
[424785922,1781161844000,-150.0,0.00014025,2]
[424785926,1781161844000,-160.0,0.00014047,2]
[424785921,1781161844000,-150.0,0.00014023,2]
[424785918,1781161844000,-998.47,0.00014004,2]
[424785920,1781161844000,-150.0,0.00014023,2]
[424785919,1781161844000,-254.58489995,0.00014017,2]
[424785915,1781161844000,-1500.0,0.00014,2]
[424785917,1781161844000,-254.58489995,0.00014002,2]
[424785923,1781161844000,-150.0,0.00014033,2]
[424785937,1781161844000,-150.0,0.00014081,2]
[424785928,1781161844000,-637.330342,0.00014047,2]
[424785930,1781161844000,-254.58489995,0.00014048,2]
[424785927,1781161844000,-398.665171,0.00014047,2]
[424785929,1781161844000,-266.097349,0.00014047,2]
[424785931,1781161844000,-4000.0,0.00014052,2]
[424785932,1781161844000,-150.0,0.00014053,2]
[424785933,1781161844000,-150.0,0.00014059,2]
[424785941,1781161844000,-150.0,0.00014094,2]
[424785935,1781161844000,-254.58489995,0.00014063,2]
[424785938,1781161844000,-150.0,0.00014087,2]
[424785916,1781161844000,-150.0,0.00014001,2]
[424785925,1781161844000,-150.0,0.00014044,2]
[424785914,1781161844000,-150.0,0.00013997,2]
[424785902,1781161844000,-150.0,0.00013952,2]
[424785913,1781161844000,-26574.84911613,0.0001399,2]
[424785939,1781161844000,-150.0,0.00014087,2]
[424785889,1781161844000,-150.0,0.00013884,2]
[424785890,1781161844000,-199.5,0.00013885,2]
[424785891,1781161844000,-150.0,0.00013896,2]
[424785892,1781161844000,-254.58489995,0.00013896,2]
[424785894,1781161844000,-150.0,0.00013912,2]
[424785897,1781161844000,-150.0,0.00013916,2]
[424785893,1781161844000,-254.58489995,0.00013912,2]
[424785896,1781161844000,-150.0,0.00013916,2]
[424785895,1781161844000,-150.0,0.00013916,2]
[424785898,1781161844000,-150.0,0.00013916,2]
[424785899,1781161844000,-254.58489995,0.00013927,2]
[424785900,1781161844000,-150.0,0.0001394,2]
[424785901,1781161844000,-254.58489995,0.00013942,2]
[424785904,1781161844000,-254.58489995,0.00013957,2]
[424785903,1781161844000,-150.0,0.00013952,2]
[424785907,1781161844000,-254.58489995,0.00013972,2]
[424785908,1781161844000,-1252.0,0.00013981,2]
[424785909,1781161844000,-150.0,0.00013987,2]
[424785906,1781161844000,-150.0,0.00013968,2]
[424785905,1781161844000,-150.0,0.00013959,2]
[424785911,1781161844000,-254.58489995,0.00013987,2]
[424785910,1781161844000,-150.0,0.00013987,2]
[424785912,1781161844000,-150.0,0.00013987,2]
[424785934,1781161844000,-150.0,0.00014059,2]
[424785940,1781161844000,-254.58489995,0.00014093,2]
[424785980,1781161844000,-575.73060654,0.0001425,2]
[424785969,1781161844000,-254.58489995,0.00014214,2]
[424785971,1781161844000,-150.0,0.00014223,2]
[424785972,1781161844000,-254.58489995,0.00014229,2]
[424785974,1781161844000,-150.0,0.00014237,2]
[424785977,1781161844000,-254.58489995,0.00014245,2]
[424785976,1781161844000,-165.1,0.00014239,2]
[424785975,1781161844000,-150.0,0.00014237,2]
[424785978,1781161844000,-151.79021661,0.0001425,2]
[424785982,1781161844000,-150.0,0.00014258,2]
[424785979,1781161844000,-3000.0,0.0001425,2]
[424785981,1781161844000,-150.0,0.00014251,2]
[424785983,1781161844000,-254.58489995,0.0001426,2]
[424785984,1781161844000,-150.0,0.00014273,2]
[424785985,1781161844000,-150.0,0.00014273,2]
[424785986,1781161844000,-254.58489995,0.00014275,2]
[424785987,1781161844000,-150.0,0.00014279,2]
[424785993,1781161844000,-254.58489995,0.00014305,2]
[424785991,1781161844000,-150.0,0.00014301,2]
[424785989,1781161844000,-928.712754,0.00014298,2]
[424785992,1781161844000,-150.0,0.00014305,2]
[424785988,1781161844000,-254.58489995,0.0001429,2]
[424785936,1781161844000,-254.58489995,0.00014078,2]
[424785990,1781161844000,-3714.851016,0.00014298,2]
[424785970,1781161844000,-150.0,0.00014216,2]
[424785966,1781161844000,-254.58489995,0.00014199,2]
[424785973,1781161844000,-150.0,0.00014237,2]
[424785968,1781161844000,-150.0,0.00014201,2]
[424785942,1781161844000,-150.0,0.00014094,2]
[424785944,1781161844000,-254.58489995,0.00014108,2]
[424785945,1781161844000,-150.0,0.0001411,2]
[424785943,1781161844000,-1500.0,0.00014097,2]
[424785946,1781161844000,-160.0,0.00014117,2]
[424785948,1781161844000,-604.655017,0.00014117,2]
[424785947,1781161844000,-382.327508,0.00014117,2]
[424785949,1781161844000,-20184.37238519,0.00014122,2]
[424785967,1781161844000,-150.0,0.00014201,2]
[424785951,1781161844000,-150.0,0.0001413,2]
[424785952,1781161844000,-150.0,0.0001413,2]
[424785953,1781161844000,-150.0,0.0001413,2]
[424785958,1781161844000,-150.0,0.00014166,2]
[424785950,1781161844000,-254.58489995,0.00014123,2]
[424785965,1781161844000,-150.0,0.00014195,2]
[424785955,1781161844000,-150.0,0.00014138,2]
[424785954,1781161844000,-150.0,0.0001413,2]
[424785957,1781161844000,-254.58489995,0.00014154,2]
[424785959,1781161844000,-150.0,0.00014166,2]
[424785962,1781161844000,-254.58489995,0.00014169,2]
[424785960,1781161844000,-150.0,0.00014166,2]
[424785961,1781161844000,-150.0,0.00014169,2]
[424785963,1781161844000,-150.0,0.00014173,2]
[424785956,1781161844000,-254.58489995,0.00014139,2]
[424785964,1781161844000,-254.58489995,0.00014184,2]
[424786033,1781161845000,-254.58489995,0.00014456,2]
[424786030,1781161845000,-150.0,0.00014449,2]
[424786031,1781161845000,-150.0,0.00014451,2]
[424786029,1781161845000,-254.58489995,0.00014441,2]
[424786020,1781161845000,-254.58489995,0.00014396,2]
[424786022,1781161845000,-254.58489995,0.00014411,2]
[424786026,1781161845000,-254.58489995,0.00014426,2]
[424786023,1781161845000,-150.0,0.00014415,2]
[424786027,1781161845000,-150.0,0.0001443,2]
[424786032,1781161845000,-150.0,0.00014451,2]
[424786028,1781161845000,-150.0,0.00014441,2]
[424786038,1781161845000,-150.0,0.00014487,2]
[424786046,1781161845000,-150.0,0.00014522,2]
[424786034,1781161845000,-254.58489995,0.00014472,2]
[424786037,1781161845000,-150.0,0.00014487,2]
[424786036,1781161845000,-150.0,0.00014477,2]
[424786039,1781161845000,-254.58489995,0.00014487,2]
[424786041,1781161845000,-171.7,0.00014495,2]
[424786040,1781161845000,-150.0,0.00014487,2]
[424786043,1781161845000,-150.0,0.00014506,2]
[424786042,1781161845000,-254.58489995,0.00014502,2]
[424786047,1781161845000,-150.0,0.00014522,2]
[424786051,1781161845000,-150.0,0.00014558,2]
[424786045,1781161845000,-254.58489995,0.00014517,2]
[424786025,1781161845000,-150.0,0.00014421,2]
[424786035,1781161845000,-150.0,0.00014472,2]
[424786024,1781161845000,-150.0,0.00014415,2]
[424785995,1781161845000,-150.0,0.00014308,2]
[424786021,1781161845000,-1240.73551738,0.000144,2]
[424785994,1781161845000,-87135.38377846,0.00014307,2]
[424785996,1781161845000,-150.0,0.00014308,2]
[424785998,1781161845000,-254.58489995,0.0001432,2]
[424785997,1781161845000,-150.0,0.00014308,2]
[424786001,1781161845000,-500.0,0.00014327,14]
[424786000,1781161845000,-909.22,0.00014327,2]
[424785999,1781161845000,-2171.56,0.00014327,2]
[424786003,1781161845000,-254.58489995,0.00014335,2]
[424786005,1781161845000,-150.0,0.00014344,2]
[424786004,1781161845000,-150.0,0.00014336,2]
[424786006,1781161845000,-150.0,0.00014344,2]
[424786019,1781161845000,-150.0,0.00014393,2]
[424786002,1781161845000,-660.37,0.00014327,2]
[424786008,1781161845000,-150.0,0.00014344,2]
[424786010,1781161845000,-150.0,0.00014364,2]
[424786009,1781161845000,-254.58489995,0.00014351,2]
[424786011,1781161845000,-254.58489995,0.00014366,2]
[424786014,1781161845000,-254.58489995,0.00014381,2]
[424786016,1781161845000,-150.0,0.00014387,2]
[424786013,1781161845000,-150.0,0.0001438,2]
[424786012,1781161845000,-150.0,0.0001438,2]
[424786015,1781161845000,-4000.0,0.00014387,2]
[424786017,1781161845000,-150.0,0.00014387,2]
[424786018,1781161845000,-10482.63494594,0.0001439,2]
[424786007,1781161845000,-150.0,0.00014344,2]
[424786044,1781161845000,-150.0,0.00014515,2]
[424786105,1781161845000,-539.51,0.00014745,2]
[424786048,1781161845000,-254.58489995,0.00014532,2]
[424786081,1781161845000,-150.0,0.00014687,2]
[424786079,1781161845000,-150.0,0.00014675,2]
[424786080,1781161845000,-254.58489995,0.00014684,2]
[424786083,1781161845000,-165.1,0.00014694,2]
[424786084,1781161845000,-254.58489995,0.00014699,2]
[424786089,1781161845000,-150.0,0.00014704,2]
[424786087,1781161845000,-150.0,0.00014701,2]
[424786086,1781161845000,-8700.0,0.000147,5]
[424786088,1781161845000,-150.0,0.00014701,2]
[424786091,1781161845000,-150.0,0.00014714,2]
[424786093,1781161845000,-254.58489995,0.00014714,2]
[424786082,1781161845000,-150.0,0.00014687,2]
[424786095,1781161845000,-4000.0,0.00014721,2]
[424786096,1781161845000,-254.58489995,0.00014729,2]
[424786098,1781161845000,-150.0,0.00014732,2]
[424786099,1781161845000,-150.0,0.00014737,2]
[424786101,1781161845000,-539.51,0.00014744,2]
[424786102,1781161845000,-228.99234821,0.00014744,2]
[424786104,1781161845000,-539.51,0.00014745,2]
[424786103,1781161845000,-254.58489995,0.00014744,2]
[424786100,1781161845000,-150.0,0.00014737,2]
[424786106,1781161845000,-2171.56,0.00014745,2]
[424786107,1781161845000,-2171.56,0.00014745,2]
[424786050,1781161845000,-254.58489995,0.00014547,2]
[424786085,1781161845000,-256.626789,0.000147,2]
[424786075,1781161845000,-254.58489995,0.00014653,2]
[424786097,1781161845000,-150.0,0.00014729,2]
[424786077,1781161845000,-150.0,0.00014665,2]
[424786049,1781161845000,-150.0,0.00014534,2]
[424786078,1781161845000,-254.58489995,0.00014668,2]
[424786052,1781161845000,-150.0,0.00014558,2]
[424786053,1781161845000,-150.0,0.00014558,2]
[424786056,1781161845000,-254.58489995,0.00014562,2]
[424786057,1781161845000,-150.0,0.00014578,2]
[424786055,1781161845000,-150.0,0.00014562,2]
[424786061,1781161845000,-150.0,0.00014594,2]
[424786058,1781161845000,-254.58489995,0.00014578,2]
[424786059,1781161845000,-150.0,0.0001459,2]
[424786054,1781161845000,-150.0,0.00014558,2]
[424786062,1781161845000,-150.0,0.00014594,2]
[424786064,1781161845000,-150.0,0.00014601,2]
[424786060,1781161845000,-254.58489995,0.00014593,2]
[424786074,1781161845000,-150.0,0.00014647,2]
[424786076,1781161845000,-150.0,0.00014665,2]
[424786063,1781161845000,-8700.0,0.000146,5]
[424786073,1781161845000,-1555.5,0.00014645,2]
[424786072,1781161845000,-150.0,0.00014644,2]
[424786070,1781161845000,-254.58489995,0.00014638,2]
[424786071,1781161845000,-200.0,0.00014641,2]
[424786068,1781161845000,-150.0,0.00014629,2]
[424786066,1781161845000,-150.0,0.00014619,2]
[424786067,1781161845000,-254.58489995,0.00014623,2]
[424786065,1781161845000,-254.58489995,0.00014608,2]
[424786069,1781161845000,-150.0,0.00014629,2]
[424786141,1781161846000,-150.0,0.00014844,2]
[424786155,1781161846000,-2171.56,0.00014899,2]
[424786108,1781161846000,-2171.56,0.00014745,2]
[424786145,1781161846000,-150.0,0.00014858,2]
[424786140,1781161846000,-150.0,0.00014844,2]
[424786135,1781161846000,-150.0,0.00014817,2]
[424786142,1781161846000,-150.0,0.00014845,2]
[424786143,1781161846000,-150.0,0.0001485,2]
[424786144,1781161846000,-254.58489995,0.0001485,2]
[424786154,1781161846000,-539.51,0.00014899,2]
[424786139,1781161846000,-177.19,0.00014837,2]
[424786146,1781161846000,-254.58489995,0.00014865,2]
[424786167,1781161846000,-171.48663565,0.000149,2]
[424786152,1781161846000,-254.58489995,0.0001488,2]
[424786153,1781161846000,-254.58489995,0.00014895,2]
[424786148,1781161846000,-150.0,0.00014879,2]
[424786147,1781161846000,-150.0,0.00014873,2]
[424786150,1781161846000,-181.88651015,0.0001488,2]
[424786149,1781161846000,-150.0,0.00014879,2]
[424786156,1781161846000,-909.22,0.00014899,2]
[424786158,1781161846000,-660.37,0.00014899,2]
[424786159,1781161846000,-500.0,0.00014899,2]
[424786160,1781161846000,-10819.58354044,0.000149,2]
[424786157,1781161846000,-500.0,0.00014899,18]
[424786134,1781161846000,-150.0,0.00014815,2]
[424786151,1781161846000,-159.47308989,0.0001488,2]
[424786137,1781161846000,-521.355693,0.00014823,2]
[424786110,1781161846000,-909.22,0.00014745,2]
[424786133,1781161846000,-150.0,0.00014808,2]
[424786109,1781161846000,-909.22,0.00014745,2]
[424786111,1781161846000,-909.22,0.00014745,2]
[424786117,1781161846000,-660.37,0.00014745,2]
[424786118,1781161846000,-543.634324,0.00014749,2]
[424786114,1781161846000,-500.0,0.00014745,17]
[424786116,1781161846000,-660.37,0.00014745,2]
[424786113,1781161846000,-500.0,0.00014745,16]
[424786119,1781161846000,-254.58489995,0.00014759,2]
[424786112,1781161846000,-500.0,0.00014745,15]
[424786115,1781161846000,-660.37,0.00014745,2]
[424786120,1781161846000,-150.0,0.0001476,2]
[424786121,1781161846000,-150.0,0.00014772,2]
[424786123,1781161846000,-150.0,0.00014772,2]
[424786122,1781161846000,-150.0,0.00014772,2]
[424786124,1781161846000,-150.0,0.00014772,2]
[424786125,1781161846000,-254.58489995,0.00014774,2]
[424786130,1781161846000,-8700.0,0.000148,5]
[424786131,1781161846000,-254.58489995,0.00014805,2]
[424786132,1781161846000,-150.0,0.00014808,2]
[424786126,1781161846000,-150.0,0.00014788,2]
[424786127,1781161846000,-254.58489995,0.0001479,2]
[424786129,1781161846000,-2168.92644874,0.000148,2]
[424786164,1781161846000,-250.0,0.000149,2]
[424786128,1781161846000,-350.0,0.000148,2]
[424786136,1781161846000,-254.58489995,0.0001482,2]
[424786138,1781161846000,-254.58489995,0.00014835,2]
[424786166,1781161846000,-2968.95470525,0.000149,2]
[424786184,1781161846000,-388.61104204,0.00014956,2]
[424786162,1781161846000,-8700.0,0.000149,5]
[424786199,1781161846000,-289.90717118,0.00014986,2]
[424786202,1781161846000,-539.51,0.00014999,2]
[424786201,1781161846000,-543.19390237,0.0001499,2]
[424786203,1781161846000,-539.51,0.00014999,2]